[Event "*** Titled Tuesday Blitz"]
[Site "Chess.com"]
[Date "2020.11.03"]
[Round "2"]
[White "saraswathii"]
[Black "cukin84"]
[Result "1/2-1/2"]
[WhiteElo "2370"]
[BlackElo "2065"]
[TimeControl "180+1"]
[EndTime "10:19:51 PST"]
[Termination "Game drawn by stalemate"]

1. e4 {[%clk 0:03:00.9]} 1... c6 {[%clk 0:02:59.5]} 2. d3 {[%clk 0:02:50.7]}
2... d5 {[%clk 0:02:59]} 3. Nd2 {[%clk 0:02:51.2]} 3... dxe4 {[%clk 0:02:57.5]}
4. dxe4 {[%clk 0:02:52.1]} 4... e5 {[%clk 0:02:57.1]} 5. Ngf3 {[%clk 0:02:52.4]}
5... Nd7 {[%clk 0:02:52.3]} 6. Bd3 {[%clk 0:02:46.9]} 6... Bc5 {[%clk
0:02:50.1]} 7. O-O {[%clk 0:02:46.7]} 7... Ne7 {[%clk 0:02:48.9]} 8. Nc4 {[%clk
0:02:46.2]} 8... Qc7 {[%clk 0:02:45.5]} 9. c3 {[%clk 0:02:45]} 9... O-O {[%clk
0:02:44.3]} 10. b4 {[%clk 0:02:43.3]} 10... Bb6 {[%clk 0:02:42.2]} 11. Bg5
{[%clk 0:02:39.8]} 11... f6 {[%clk 0:02:41.2]} 12. Bh4 {[%clk 0:02:35.1]} 12...
Ng6 {[%clk 0:02:40.5]} 13. Bg3 {[%clk 0:02:23.5]} 13... Rd8 {[%clk 0:02:38.9]}
14. Qb3 {[%clk 0:02:15.4]} 14... Kh8 {[%clk 0:02:37]} 15. a4 {[%clk 0:02:08.3]}
15... a5 {[%clk 0:02:35.5]} 16. Rad1 {[%clk 0:01:58.4]} 16... Ndf8 {[%clk
0:02:28.8]} 17. h3 {[%clk 0:01:42.4]} 17... Be6 {[%clk 0:02:27.7]} 18. Qc2
{[%clk 0:01:36]} 18... axb4 {[%clk 0:02:24]} 19. cxb4 {[%clk 0:01:31.4]} 19...
Bd4 {[%clk 0:02:18.2]} 20. Be2 {[%clk 0:01:20.8]} 20... c5 {[%clk 0:02:04.2]}
21. bxc5 {[%clk 0:01:04.7]} 21... Qxc5 {[%clk 0:02:01.2]} 22. Nxd4 {[%clk
0:00:50.4]} 22... Rxd4 {[%clk 0:01:59]} 23. Rxd4 {[%clk 0:00:37.5]} 23... exd4
{[%clk 0:01:58]} 24. Bd6 {[%clk 0:00:35.9]} 24... Qc6 {[%clk 0:01:53.4]} 25.
Bxf8 {[%clk 0:00:32.2]} 25... Nxf8 {[%clk 0:01:52.1]} 26. Qd3 {[%clk 0:00:32.5]}
26... Bxc4 {[%clk 0:01:48.9]} 27. Qxc4 {[%clk 0:00:29.6]} 27... Qxc4 {[%clk
0:01:48.8]} 28. Bxc4 {[%clk 0:00:29.5]} 28... Rxa4 {[%clk 0:01:48.8]} 29. Bd5
{[%clk 0:00:29.8]} 29... Rb4 {[%clk 0:01:37.4]} 30. Ra1 {[%clk 0:00:27.9]} 30...
g5 {[%clk 0:01:36.1]} 31. Ra8 {[%clk 0:00:26.9]} 31... Kg7 {[%clk 0:01:35.5]}
32. Ra7 {[%clk 0:00:26.8]} 32... d3 {[%clk 0:01:33.1]} 33. Bxb7 {[%clk
0:00:19.9]} 33... d2 {[%clk 0:01:33]} 34. Ba6+ {[%clk 0:00:19.5]} 34... Kh6
{[%clk 0:01:32.4]} 35. Be2 {[%clk 0:00:19]} 35... Rb1+ {[%clk 0:01:30.9]} 36.
Kh2 {[%clk 0:00:19.1]} 36... d1=Q {[%clk 0:01:30.7]} 37. Bxd1 {[%clk 0:00:18.6]}
37... Rxd1 {[%clk 0:01:30.5]} 38. Rf7 {[%clk 0:00:19.2]} 38... Ng6 {[%clk
0:01:28.5]} 39. Rxf6 {[%clk 0:00:19.1]} 39... Re1 {[%clk 0:01:27.3]} 40. f3
{[%clk 0:00:18.2]} 40... Kg7 {[%clk 0:01:26.6]} 41. Rf5 {[%clk 0:00:16.8]} 41...
h6 {[%clk 0:01:26]} 42. Ra5 {[%clk 0:00:14.6]} 42... Re2 {[%clk 0:01:24.9]} 43.
Ra7+ {[%clk 0:00:14.4]} 43... Kf6 {[%clk 0:01:23.1]} 44. Ra6+ {[%clk 0:00:14.5]}
44... Kf7 {[%clk 0:01:23.3]} 45. Ra7+ {[%clk 0:00:14.5]} 45... Ke8 {[%clk
0:01:23.2]} 46. Ra6 {[%clk 0:00:11.9]} 46... Nf4 {[%clk 0:01:22.8]} 47. Rxh6
{[%clk 0:00:09]} 47... Rxg2+ {[%clk 0:01:22.3]} 48. Kh1 {[%clk 0:00:09]} 48...
Rg3 {[%clk 0:01:19.7]} 49. h4 {[%clk 0:00:08.6]} 49... gxh4 {[%clk 0:01:13.9]}
50. Rxh4 {[%clk 0:00:07.2]} 50... Rxf3 {[%clk 0:01:14.1]} 51. Kh2 {[%clk
0:00:06.3]} 51... Ne6 {[%clk 0:01:10.8]} 52. Kg2 {[%clk 0:00:05.3]} 52... Ra3
{[%clk 0:01:09.2]} 53. Kf2 {[%clk 0:00:05.3]} 53... Kd7 {[%clk 0:01:08.1]} 54.
Rh5 {[%clk 0:00:03.6]} 54... Kd6 {[%clk 0:01:08.1]} 55. Rd5+ {[%clk 0:00:03.7]}
55... Ke7 {[%clk 0:01:07.8]} 56. Rd2 {[%clk 0:00:04.3]} 56... Kf6 {[%clk
0:01:07.1]} 57. Rb2 {[%clk 0:00:04.6]} 57... Ke5 {[%clk 0:01:05.9]} 58. Rb4
{[%clk 0:00:05.2]} 58... Nd4 {[%clk 0:01:05.2]} 59. Rb2 {[%clk 0:00:03.9]} 59...
Kxe4 {[%clk 0:01:04.9]} 60. Rd2 {[%clk 0:00:03.3]} 60... Rf3+ {[%clk 0:01:03.6]}
61. Kg2 {[%clk 0:00:03.9]} 61... Rf6 {[%clk 0:01:01.7]} 62. Rd1 {[%clk
0:00:03.5]} 62... Ke3 {[%clk 0:01:01.3]} 63. Re1+ {[%clk 0:00:03.8]} 63... Ne2
{[%clk 0:01:01.5]} 64. Rf1 {[%clk 0:00:04.2]} 64... Rg6+ {[%clk 0:01:00.2]} 65.
Kh3 {[%clk 0:00:03.9]} 65... Nf4+ {[%clk 0:00:59.2]} 66. Kh4 {[%clk 0:00:04.2]}
66... Ke4 {[%clk 0:00:55.6]} 67. Re1+ {[%clk 0:00:03.9]} 67... Kf5 {[%clk
0:00:55]} 68. Re5+ {[%clk 0:00:03.5]} 68... Kf6 {[%clk 0:00:50.7]} 69. Rf5+
{[%clk 0:00:04]} 69... Kxf5 {[%clk 0:00:49.1]} 1/2-1/2

[Event "*** Titled Tuesday Blitz"]
[Site "Chess.com"]
[Date "2020.11.03"]
[Round "2"]
[White "novocane"]
[Black "RobPeresian"]
[Result "1-0"]
[WhiteElo "2306"]
[BlackElo "2452"]
[TimeControl "180+1"]
[EndTime "10:19:52 PST"]
[Termination "novocane won by resignation"]

1. d4 {[%clk 0:02:59]} 1... Nf6 {[%clk 0:02:55.7]} 2. c4 {[%clk 0:02:58.9]} 2...
e6 {[%clk 0:02:55.8]} 3. Nc3 {[%clk 0:02:59.4]} 3... Bb4 {[%clk 0:02:55.4]} 4.
e3 {[%clk 0:02:58.9]} 4... O-O {[%clk 0:02:54.4]} 5. Ne2 {[%clk 0:02:58.7]} 5...
Re8 {[%clk 0:02:53]} 6. a3 {[%clk 0:02:58.4]} 6... Bf8 {[%clk 0:02:53]} 7. e4
{[%clk 0:02:58.5]} 7... d5 {[%clk 0:02:33.9]} 8. e5 {[%clk 0:02:56.4]} 8... Nfd7
{[%clk 0:02:25.7]} 9. f4 {[%clk 0:02:54.6]} 9... c5 {[%clk 0:02:18.4]} 10. dxc5
{[%clk 0:02:47.5]} 10... dxc4 {[%clk 0:02:11]} 11. Ng3 {[%clk 0:02:33.7]} 11...
Nxc5 {[%clk 0:01:58.1]} 12. Bxc4 {[%clk 0:02:32.5]} 12... Qxd1+ {[%clk
0:01:53.5]} 13. Nxd1 {[%clk 0:02:32]} 13... b6 {[%clk 0:01:50.3]} 14. b4 {[%clk
0:02:25.9]} 14... Ncd7 {[%clk 0:01:44.7]} 15. O-O {[%clk 0:02:22.6]} 15... Bb7
{[%clk 0:01:34]} 16. Nc3 {[%clk 0:02:04.5]} 16... Nc6 {[%clk 0:01:30.1]} 17.
Nce4 {[%clk 0:01:54]} 17... Rac8 {[%clk 0:01:26.2]} 18. Bb2 {[%clk 0:01:24.4]}
18... a5 {[%clk 0:01:22.2]} 19. Nd6 {[%clk 0:01:03.5]} 19... Bxd6 {[%clk
0:01:18.9]} 20. exd6 {[%clk 0:01:03.4]} 20... axb4 {[%clk 0:01:19]} 21. axb4
{[%clk 0:01:03.1]} 21... Nxb4 {[%clk 0:01:18.4]} 22. Bb5 {[%clk 0:00:43.5]}
22... Bc6 {[%clk 0:01:14.2]} 23. Be2 {[%clk 0:00:35.8]} 23... Ra8 {[%clk
0:01:04]} 24. f5 {[%clk 0:00:33.4]} 24... exf5 {[%clk 0:00:59.8]} 25. Rxa8
{[%clk 0:00:24.6]} 25... Bxa8 {[%clk 0:00:53.8]} 26. Rxf5 {[%clk 0:00:22]} 26...
Nc5 {[%clk 0:00:45.3]} 27. Bc4 {[%clk 0:00:20.1]} 27... Ne6 {[%clk 0:00:40.9]}
28. Nh5 {[%clk 0:00:16.8]} 28... f6 {[%clk 0:00:39.3]} 29. Bxf6 {[%clk
0:00:16.3]} 29... g6 {[%clk 0:00:33.4]} 30. Rg5 {[%clk 0:00:12.9]} 30... Kf8
{[%clk 0:00:20.6]} 31. Be7+ {[%clk 0:00:12.7]} 31... Rxe7 {[%clk 0:00:19]} 32.
dxe7+ {[%clk 0:00:13]} 32... Kxe7 {[%clk 0:00:19.9]} 33. Re5 {[%clk 0:00:13.3]}
33... gxh5 {[%clk 0:00:19.9]} 34. Rxe6+ {[%clk 0:00:12.2]} 34... Kd7 {[%clk
0:00:20.8]} 35. Rxb6 {[%clk 0:00:12.4]} 35... Nc6 {[%clk 0:00:20.6]} 36. Rb1
{[%clk 0:00:08.7]} 36... h4 {[%clk 0:00:19.7]} 37. Bb5 {[%clk 0:00:09]} 37...
Kd6 {[%clk 0:00:19.4]} 38. Bxc6 {[%clk 0:00:08.9]} 38... Bxc6 {[%clk 0:00:20]}
39. Rb4 {[%clk 0:00:09]} 39... h5 {[%clk 0:00:18.1]} 40. Rxh4 {[%clk 0:00:08.7]}
40... Be8 {[%clk 0:00:18.7]} 41. Rf4 {[%clk 0:00:08.4]} 41... Ke5 {[%clk
0:00:18.1]} 42. g3 {[%clk 0:00:08.8]} 42... Bg6 {[%clk 0:00:17.3]} 43. Kf2
{[%clk 0:00:09.2]} 43... Be8 {[%clk 0:00:16.4]} 44. h4 {[%clk 0:00:09.6]} 44...
Bg6 {[%clk 0:00:16.6]} 45. Ke3 {[%clk 0:00:09.6]} 45... Be8 {[%clk 0:00:16.2]}
46. Rf8 {[%clk 0:00:09.6]} 46... Bg6 {[%clk 0:00:16.6]} 47. Rg8 {[%clk
0:00:08.7]} 47... Bf7 {[%clk 0:00:16.8]} 48. Rg7 {[%clk 0:00:08.8]} 48... Kf6
{[%clk 0:00:14.8]} 49. Rg5 {[%clk 0:00:07.4]} 49... Be8 {[%clk 0:00:14.4]} 50.
Kf4 {[%clk 0:00:07.2]} 50... Bf7 {[%clk 0:00:13.9]} 51. Rf5+ {[%clk 0:00:06.6]}
51... Kg6 {[%clk 0:00:14.2]} 52. Rxf7 {[%clk 0:00:06.7]} 52... Kxf7 {[%clk
0:00:15.1]} 53. Kg5 {[%clk 0:00:07.3]} 53... Kg7 {[%clk 0:00:15.6]} 54. Kxh5
{[%clk 0:00:07.8]} 54... Kh7 {[%clk 0:00:16.3]} 55. Kg5 {[%clk 0:00:08.4]} 55...
Kg7 {[%clk 0:00:17.2]} 56. h5 {[%clk 0:00:09]} 1-0

[Event "*** Titled Tuesday Blitz"]
[Site "Chess.com"]
[Date "2020.11.03"]
[Round "2"]
[White "S2PAc"]
[Black "DryCounty"]
[Result "1-0"]
[WhiteElo "2868"]
[BlackElo "2570"]
[TimeControl "180+1"]
[EndTime "10:19:54 PST"]
[Termination "S2PAc won on time"]

1. d4 {[%clk 0:02:57.1]} 1... Nf6 {[%clk 0:02:59.2]} 2. g3 {[%clk 0:02:57.3]}
2... g6 {[%clk 0:02:57.5]} 3. Bg2 {[%clk 0:02:57.9]} 3... Bg7 {[%clk 0:02:57]}
4. e4 {[%clk 0:02:58.2]} 4... d6 {[%clk 0:02:57.2]} 5. Nc3 {[%clk 0:02:58.8]}
5... O-O {[%clk 0:02:57.3]} 6. Nge2 {[%clk 0:02:59.4]} 6... Nc6 {[%clk
0:02:57.9]} 7. O-O {[%clk 0:02:59.7]} 7... e5 {[%clk 0:02:57.6]} 8. dxe5 {[%clk
0:03:00.6]} 8... dxe5 {[%clk 0:02:56.7]} 9. Bg5 {[%clk 0:03:00.5]} 9... h6
{[%clk 0:02:51.5]} 10. Qxd8 {[%clk 0:02:59.8]} 10... Rxd8 {[%clk 0:02:38.8]} 11.
Bxf6 {[%clk 0:03:00.7]} 11... Bxf6 {[%clk 0:02:39]} 12. Nd5 {[%clk 0:03:01.4]}
12... Kg7 {[%clk 0:02:32.9]} 13. Nxc7 {[%clk 0:03:01.4]} 13... Rb8 {[%clk
0:02:33.4]} 14. Rfd1 {[%clk 0:03:01.7]} 14... Nd4 {[%clk 0:02:23.4]} 15. Nxd4
{[%clk 0:03:00.2]} 15... exd4 {[%clk 0:02:11]} 16. Nd5 {[%clk 0:02:57]} 16...
Be6 {[%clk 0:02:08.3]} 17. Nxf6 {[%clk 0:02:53.1]} 17... Kxf6 {[%clk 0:02:09.2]}
18. f4 {[%clk 0:02:42.1]} 18... Rbc8 {[%clk 0:02:08.1]} 19. Rd2 {[%clk 0:02:41]}
19... a5 {[%clk 0:01:58.1]} 20. b3 {[%clk 0:02:36.1]} 20... b6 {[%clk
0:01:52.6]} 21. Rad1 {[%clk 0:02:29.2]} 21... Bg4 {[%clk 0:01:51.4]} 22. Re1
{[%clk 0:02:24.4]} 22... Rc3 {[%clk 0:01:48.1]} 23. e5+ {[%clk 0:02:23.1]} 23...
Ke7 {[%clk 0:01:47.9]} 24. Be4 {[%clk 0:02:19.7]} 24... a4 {[%clk 0:01:31.9]}
25. Kf2 {[%clk 0:02:07.2]} 25... a3 {[%clk 0:01:31.4]} 26. Kg2 {[%clk
0:02:00.5]} 26... h5 {[%clk 0:01:30]} 27. h3 {[%clk 0:01:55.2]} 27... Bf5 {[%clk
0:01:28.8]} 28. Bxf5 {[%clk 0:01:27.4]} 28... gxf5 {[%clk 0:01:27.7]} 29. Kf2
{[%clk 0:01:27.9]} 29... Ke6 {[%clk 0:01:17.1]} 30. Red1 {[%clk 0:01:25.8]}
30... h4 {[%clk 0:01:07.9]} 31. gxh4 {[%clk 0:01:18.7]} 31... Rxh3 {[%clk
0:01:03.5]} 32. Rxd4 {[%clk 0:01:18.7]} 32... Rxd4 {[%clk 0:01:02.3]} 33. Rxd4
{[%clk 0:01:19.1]} 33... Rh2+ {[%clk 0:00:59]} 34. Ke3 {[%clk 0:01:14.8]} 34...
Rxc2 {[%clk 0:00:58.9]} 35. Rd6+ {[%clk 0:01:15.2]} 35... Ke7 {[%clk 0:00:58.8]}
36. Rxb6 {[%clk 0:01:15.5]} 36... Rxa2 {[%clk 0:00:57.9]} 37. Ra6 {[%clk
0:01:15.8]} 37... Ra1 {[%clk 0:00:55.9]} 38. Kf2 {[%clk 0:00:50.5]} 38... a2
{[%clk 0:00:34.6]} 39. Kg2 {[%clk 0:00:50.3]} 39... Rb1 {[%clk 0:00:34.3]} 40.
Rxa2 {[%clk 0:00:49.6]} 40... Rxb3 {[%clk 0:00:34.9]} 41. h5 {[%clk 0:00:44.8]}
41... Kf8 {[%clk 0:00:34.3]} 42. Ra6 {[%clk 0:00:44]} 42... Kg7 {[%clk 0:00:34]}
43. Rf6 {[%clk 0:00:44]} 43... Rb2+ {[%clk 0:00:29.8]} 44. Kg3 {[%clk
0:00:43.9]} 44... Rb3+ {[%clk 0:00:25.5]} 45. Kh4 {[%clk 0:00:44]} 45... Rb1
{[%clk 0:00:23.4]} 46. Kg5 {[%clk 0:00:39]} 46... Rh1 {[%clk 0:00:18.8]} 47. h6+
{[%clk 0:00:37.1]} 47... Kg8 {[%clk 0:00:18.1]} 48. Kxf5 {[%clk 0:00:37.3]}
48... Rh4 {[%clk 0:00:16.8]} 49. Kg5 {[%clk 0:00:31.7]} 49... Rh1 {[%clk
0:00:16.6]} 50. Rd6 {[%clk 0:00:28.7]} 50... Rg1+ {[%clk 0:00:16.1]} 51. Kf6
{[%clk 0:00:23.8]} 51... Rg4 {[%clk 0:00:15.3]} 52. f5 {[%clk 0:00:22.9]} 52...
Kh7 {[%clk 0:00:10.3]} 53. Kxf7 {[%clk 0:00:21.9]} 53... Rg7+ {[%clk 0:00:10.4]}
54. Ke6 {[%clk 0:00:18.6]} 54... Kxh6 {[%clk 0:00:09.8]} 55. f6 {[%clk
0:00:18.8]} 55... Rg2 {[%clk 0:00:08.6]} 56. Kf7 {[%clk 0:00:17.2]} 56... Kh7
{[%clk 0:00:08.5]} 57. Rd3 {[%clk 0:00:15.3]} 57... Rh2 {[%clk 0:00:05.6]} 58.
e6 {[%clk 0:00:15.2]} 58... Kh8 {[%clk 0:00:03.6]} 59. e7 {[%clk 0:00:15.6]}
59... Rh7+ {[%clk 0:00:03.4]} 60. Ke6 {[%clk 0:00:15.9]} 1-0

[Event "*** Titled Tuesday Blitz"]
[Site "Chess.com"]
[Date "2020.11.03"]
[Round "2"]
[White "mortngabriel"]
[Black "gurelediz"]
[Result "0-1"]
[WhiteElo "2334"]
[BlackElo "2698"]
[TimeControl "180+1"]
[EndTime "10:19:54 PST"]
[Termination "gurelediz won by resignation"]

1. d4 {[%clk 0:03:00.9]} 1... Nf6 {[%clk 0:02:53.7]} 2. Nf3 {[%clk 0:02:59.2]}
2... e6 {[%clk 0:02:52.9]} 3. g3 {[%clk 0:02:58.9]} 3... b6 {[%clk 0:02:52.9]}
4. Bg2 {[%clk 0:02:58.1]} 4... Bb7 {[%clk 0:02:53.8]} 5. O-O {[%clk 0:02:58.7]}
5... Be7 {[%clk 0:02:54.4]} 6. c4 {[%clk 0:02:59.3]} 6... O-O {[%clk 0:02:55.1]}
7. d5 {[%clk 0:03:00]} 7... exd5 {[%clk 0:02:54.7]} 8. Nh4 {[%clk 0:02:59.9]}
8... Ne4 {[%clk 0:02:51.6]} 9. Nf5 {[%clk 0:02:55.4]} 9... dxc4 {[%clk
0:02:51.2]} 10. Qc2 {[%clk 0:02:41]} 10... d5 {[%clk 0:02:40.2]} 11. Rd1 {[%clk
0:02:39.6]} 11... Nd6 {[%clk 0:02:33.3]} 12. Bxd5 {[%clk 0:02:32.9]} 12... Bxd5
{[%clk 0:02:30.2]} 13. Rxd5 {[%clk 0:02:33.8]} 13... Nd7 {[%clk 0:02:27.4]} 14.
Bf4 {[%clk 0:02:21.3]} 14... Nf6 {[%clk 0:02:11]} 15. Rd1 {[%clk 0:02:15.1]}
15... Qd7 {[%clk 0:02:10.8]} 16. Nxe7+ {[%clk 0:02:08.2]} 16... Qxe7 {[%clk
0:02:09.7]} 17. Bxd6 {[%clk 0:02:08.6]} 17... cxd6 {[%clk 0:02:10.6]} 18. Qxc4
{[%clk 0:02:06.6]} 18... Rac8 {[%clk 0:02:06.2]} 19. Qd3 {[%clk 0:02:06.5]}
19... d5 {[%clk 0:02:04.5]} 20. Nc3 {[%clk 0:02:05.7]} 20... Rfd8 {[%clk
0:02:04.9]} 21. e3 {[%clk 0:02:02.7]} 21... h5 {[%clk 0:01:59.8]} 22. h4 {[%clk
0:01:59.2]} 22... Qe6 {[%clk 0:01:55.7]} 23. Ne2 {[%clk 0:01:56.3]} 23... Ne4
{[%clk 0:01:46.9]} 24. Rac1 {[%clk 0:01:38.3]} 24... Qg4 {[%clk 0:01:34.8]} 25.
Rxc8 {[%clk 0:01:31.4]} 25... Rxc8 {[%clk 0:01:35.7]} 26. Nc3 {[%clk 0:01:21.3]}
26... Nxg3 {[%clk 0:01:26.2]} 27. fxg3 {[%clk 0:01:14.2]} 27... Qxg3+ {[%clk
0:01:27.1]} 28. Kf1 {[%clk 0:01:14.5]} 28... Qxh4 {[%clk 0:01:19.8]} 29. Nxd5
{[%clk 0:01:07.9]} 29... Re8 {[%clk 0:01:16.4]} 30. Rd2 {[%clk 0:00:58.2]} 30...
Re5 {[%clk 0:01:13.7]} 31. Nf4 {[%clk 0:00:54.7]} 31... Qh1+ {[%clk 0:01:02.8]}
32. Ke2 {[%clk 0:00:54.3]} 32... h4 {[%clk 0:00:51.8]} 33. Qd8+ {[%clk
0:00:36.1]} 33... Kh7 {[%clk 0:00:51]} 34. Qd3+ {[%clk 0:00:36.7]} 34... g6
{[%clk 0:00:49]} 35. Qd7 {[%clk 0:00:32.6]} 35... Rf5 {[%clk 0:00:26.7]} 36. Rd5
{[%clk 0:00:28.6]} 36... Qh2+ {[%clk 0:00:19.3]} 37. Kd3 {[%clk 0:00:28.3]}
37... Rxd5+ {[%clk 0:00:19.1]} 38. Qxd5 {[%clk 0:00:26.4]} 38... Kg7 {[%clk
0:00:15.6]} 39. Qe5+ {[%clk 0:00:26.6]} 39... Kh7 {[%clk 0:00:16]} 40. Qf6
{[%clk 0:00:26.5]} 40... Kg8 {[%clk 0:00:16]} 41. Qd8+ {[%clk 0:00:25.9]} 41...
Kg7 {[%clk 0:00:15.4]} 42. Qd4+ {[%clk 0:00:26]} 42... Kh6 {[%clk 0:00:14.4]}
43. Qf6 {[%clk 0:00:25.4]} 43... Qh1 {[%clk 0:00:07.6]} 44. Qxf7 {[%clk
0:00:24.1]} 44... Qb1+ {[%clk 0:00:08.1]} 45. Kc3 {[%clk 0:00:22]} 45... Qc1+
{[%clk 0:00:08.2]} 46. Kd4 {[%clk 0:00:20.8]} 46... Qxb2+ {[%clk 0:00:08.3]} 47.
Ke4 {[%clk 0:00:20.7]} 47... Qc2+ {[%clk 0:00:08.2]} 48. Nd3 {[%clk 0:00:19.6]}
48... h3 {[%clk 0:00:05.6]} 49. Qf4+ {[%clk 0:00:17.7]} 49... Kg7 {[%clk
0:00:06.1]} 50. Qe5+ {[%clk 0:00:17.7]} 50... Kf7 {[%clk 0:00:05.8]} 51. Qd5+
{[%clk 0:00:15.9]} 51... Ke7 {[%clk 0:00:06.2]} 52. Qe5+ {[%clk 0:00:15.4]}
52... Kd7 {[%clk 0:00:06.8]} 53. Qg7+ {[%clk 0:00:15.5]} 53... Kc6 {[%clk
0:00:04.6]} 54. Qxg6+ {[%clk 0:00:15.8]} 54... Kb5 {[%clk 0:00:05.3]} 55. Qf5+
{[%clk 0:00:15.6]} 55... Ka6 {[%clk 0:00:05.8]} 56. Qxh3 {[%clk 0:00:15.9]}
56... Qc4+ {[%clk 0:00:06.5]} 57. Kf3 {[%clk 0:00:15]} 57... Qxd3 {[%clk
0:00:07.4]} 58. Qc8+ {[%clk 0:00:14.9]} 58... Ka5 {[%clk 0:00:07.5]} 59. Qd7
{[%clk 0:00:14.3]} 59... Qxd7 {[%clk 0:00:07.5]} 0-1

[Event "*** Titled Tuesday Blitz"]
[Site "Chess.com"]
[Date "2020.11.03"]
[Round "2"]
[White "ChristianAlm"]
[Black "Trickov"]
[Result "1-0"]
[WhiteElo "2551"]
[BlackElo "2322"]
[TimeControl "180+1"]
[EndTime "10:19:54 PST"]
[Termination "ChristianAlm won on time"]

1. d4 {[%clk 0:03:00.9]} 1... d5 {[%clk 0:02:56.5]} 2. Bf4 {[%clk 0:02:59.1]}
2... Nf6 {[%clk 0:02:50.5]} 3. e3 {[%clk 0:02:59]} 3... c6 {[%clk 0:02:46.4]} 4.
Nf3 {[%clk 0:02:58.2]} 4... Bf5 {[%clk 0:02:44.8]} 5. Bd3 {[%clk 0:02:57.3]}
5... e6 {[%clk 0:02:43.8]} 6. O-O {[%clk 0:02:56.9]} 6... Qb6 {[%clk 0:02:42.6]}
7. b3 {[%clk 0:02:55.7]} 7... Nbd7 {[%clk 0:02:41.8]} 8. Nc3 {[%clk 0:02:55]}
8... Be7 {[%clk 0:02:37.8]} 9. Bxf5 {[%clk 0:02:43.9]} 9... exf5 {[%clk
0:02:36.9]} 10. Ne5 {[%clk 0:02:44]} 10... Rd8 {[%clk 0:02:29.2]} 11. Na4 {[%clk
0:02:36.4]} 11... Qa6 {[%clk 0:02:23.8]} 12. Bg5 {[%clk 0:02:24.4]} 12... Nxe5
{[%clk 0:02:14]} 13. dxe5 {[%clk 0:02:23.3]} 13... Ne4 {[%clk 0:02:14]} 14. Bxe7
{[%clk 0:02:22.7]} 14... Kxe7 {[%clk 0:02:13.7]} 15. f3 {[%clk 0:02:02.1]} 15...
Ng5 {[%clk 0:02:10.6]} 16. Qd4 {[%clk 0:01:47.5]} 16... Ne6 {[%clk 0:01:49.3]}
17. Qb4+ {[%clk 0:01:41.1]} 17... Kd7 {[%clk 0:01:32.5]} 18. c4 {[%clk
0:01:31.7]} 18... Kc8 {[%clk 0:01:06.7]} 19. Rac1 {[%clk 0:01:21.4]} 19... dxc4
{[%clk 0:00:49.5]} 20. Rxc4 {[%clk 0:01:22.3]} 20... Rd5 {[%clk 0:00:49.3]} 21.
Rfc1 {[%clk 0:01:10]} 21... Rhd8 {[%clk 0:00:37]} 22. f4 {[%clk 0:00:32.1]}
22... Qa5 {[%clk 0:00:33.2]} 23. Qxa5 {[%clk 0:00:23.4]} 23... Rxa5 {[%clk
0:00:32.5]} 24. R4c2 {[%clk 0:00:21.7]} 24... Rd3 {[%clk 0:00:29.8]} 25. Kf2
{[%clk 0:00:20.4]} 25... Rad5 {[%clk 0:00:29.8]} 26. Ke2 {[%clk 0:00:15.9]}
26... Rd8 {[%clk 0:00:28.2]} 27. Nb2 {[%clk 0:00:15.8]} 27... R3d5 {[%clk
0:00:27.7]} 28. Nc4 {[%clk 0:00:16.2]} 28... Nc5 {[%clk 0:00:25.2]} 29. Nd6+
{[%clk 0:00:15.6]} 29... R8xd6 {[%clk 0:00:24]} 30. exd6 {[%clk 0:00:16.5]}
30... Ne4 {[%clk 0:00:24.2]} 31. Rd1 {[%clk 0:00:14.2]} 31... Rxd6 {[%clk
0:00:22.1]} 32. Rxd6 {[%clk 0:00:13.9]} 32... Nxd6 {[%clk 0:00:22.2]} 33. Rc5
{[%clk 0:00:14.4]} 33... Kd7 {[%clk 0:00:21.6]} 34. Rc2 {[%clk 0:00:12.9]} 34...
Ke6 {[%clk 0:00:21.2]} 35. g3 {[%clk 0:00:13.3]} 35... f6 {[%clk 0:00:19.4]} 36.
h3 {[%clk 0:00:13.8]} 36... g5 {[%clk 0:00:19]} 37. Kf3 {[%clk 0:00:13.8]} 37...
h5 {[%clk 0:00:18.1]} 38. g4 {[%clk 0:00:13.7]} 38... fxg4+ {[%clk 0:00:17]} 39.
hxg4 {[%clk 0:00:14.6]} 39... hxg4+ {[%clk 0:00:16.9]} 40. Kxg4 {[%clk
0:00:15.5]} 40... gxf4 {[%clk 0:00:15.7]} 41. exf4 {[%clk 0:00:16.4]} 41... f5+
{[%clk 0:00:15.6]} 42. Kf3 {[%clk 0:00:16.2]} 42... Kd5 {[%clk 0:00:14.9]} 43.
Rd2+ {[%clk 0:00:15.2]} 43... Ke6 {[%clk 0:00:15]} 44. Re2+ {[%clk 0:00:15]}
44... Kd5 {[%clk 0:00:14.8]} 45. Rh2 {[%clk 0:00:15]} 45... a5 {[%clk
0:00:13.9]} 46. Rh7 {[%clk 0:00:14.6]} 46... Kc5 {[%clk 0:00:11.1]} 47. a3
{[%clk 0:00:10.8]} 47... b5 {[%clk 0:00:10.2]} 48. Re7 {[%clk 0:00:11.2]} 48...
Ne4 {[%clk 0:00:06.7]} 49. Re5+ {[%clk 0:00:12.1]} 49... Kd4 {[%clk 0:00:02.1]}
50. Rxf5 {[%clk 0:00:12.3]} 50... Nd2+ {[%clk 0:00:00.9]} 51. Kg4 {[%clk
0:00:12.8]} 51... Nxb3 {[%clk 0:00:01.5]} 52. Rf8 {[%clk 0:00:13.3]} 52... Nc5
{[%clk 0:00:01.2]} 53. f5 {[%clk 0:00:13.3]} 1-0